[Event "XXI Torredembarra Open 2019"]
[Site "Torredembarra"]
[Date "2019.07.14"]
[Round "9.5"]
[White "Regue Farran, Enric"]
[Black "Galimany Rovira, Xavier"]
[Result "1/2-1/2"]
[ECO "B76"]
[WhiteElo "1984"]
[BlackElo "2086"]
[Annotator "NA"]
[PlyCount "61"]
[EventDate "2019.07.06"]
[EventType "swiss"]
[EventCountry "ESP"]
[SourceTitle "playchess.com"]
[Source "ChessBase"]
[SourceQuality "1"]
[TimeControl "5400+30"]

1. e4 {[%emt 0:00:00]} c5 {[%emt 0:00:00]} 2. Nf3 {[%emt 0:00:07]} d6 {[%emt 0:00:00]} 3. d4 {[%emt 0:00:10]} cxd4 {[%emt 0:00:18]} 4. Nxd4 {[%emt 0:00:05]} Nf6 {[%emt 0:00:19]} 5. Nc3 {[%emt 0:00:03]} g6 {[%emt 0:00:27]} 6. f3 {[%emt 0:03:34]} Bg7 {[%emt 0:01:12]} 7. Be3 {[%emt 0:00:27]} O-O {[%emt 0:00:47]} 8. Qd2 {[%emt 0:00:27]} Nc6 {[%emt 0:00:31]} 9. O-O-O {[%emt 0:00:37]} d5 {[%emt 0:00:40]} 10. Nxc6 {[%emt 0:02:40]} bxc6 {[%emt 0:00:16]} 11. exd5 {[%emt 0:00:18]} Nxd5 {[%emt 0:00:24]} 12. Nxd5 {[%emt 0:00:20]} cxd5 {[%emt 0:00:19]} 13. Qxd5 {[%emt 0:00:08]} Qc7 {[%emt 0:00:23]} 14. Qc5 {[%emt 0:05:12]} Qb8 {[%emt 0:02:46]} 15. Bd4 {[%emt 0:02:12]} Bf5 {[%emt 0:12:54]} 16. Ba6 {[%emt 0:11:02]} Qf4+ {[%emt 0:07:59]} 17. Be3 {[%emt 0:02:31]} Qa4 {[%emt 0:02:49]} 18. Qc4 {[%emt 0:01:57]} Bxc2 {[%emt 0:14:12]} 19. Qxa4 {[%emt 0:00:25]} Bxa4 {[%emt 0:00:13]} 20. b3 {[%emt 0:00:13]} Bc6 {[%emt 0:02:41]} 21. Bc5 {[%emt 0:01:17]} Rfe8 {[%emt 0:03:54]} 22. Rhe1 {[%emt 0:02:47]} e6 {[%emt 0:02:20]} 23. Rd6 {[%emt 0:16:51]} Bd5 {[%emt 0:01:17]} 24. Rd7 {[%emt 0:00:54]} Red8 {[%emt 0:02:03]} 25. Rxd8+ {[%emt 0:03:01]} Rxd8 {[%emt 0:00:09]} 26. Rd1 {[%emt 0:08:49]} h5 {[%emt 0:03:26]} 27. Be3 {[%emt 0:02:19]} Kh7 {[%emt 0:00:43]} 28. Bd4 {[%emt 0:01:34]} Rd6 {[%emt 0:01:14]} 29. Bb5 {[%emt 0:01:45]} Bxd4 {[%emt 0:00:54]} 30. Rxd4 {[%emt 0:00:02]} a6 {[%emt 0:00:22]} 31. Ba4 {[%emt 0:00:09]} 1/2-1/2

[Event "XXI Torredembarra Open 2019"]
[Site "Torredembarra"]
[Date "2019.07.14"]
[Round "9.6"]
[White "Soler Lopez, Hugo"]
[Black "Ventos Navarro, Llibert"]
[Result "1-0"]
[ECO "C50"]
[WhiteElo "2072"]
[BlackElo "2013"]
[Annotator "NA"]
[PlyCount "85"]
[EventDate "2019.07.06"]
[EventType "swiss"]
[EventCountry "ESP"]
[SourceTitle "playchess.com"]
[Source "ChessBase"]
[SourceQuality "1"]
[TimeControl "5400+30"]

1. e4 {[%emt 0:03:54]} e5 {[%emt 0:00:00]} 2. Nf3 {[%emt 0:00:49]} Nc6 {[%emt 0:00:04]} 3. Bc4 {[%emt 0:00:05]} Be7 {[%emt 0:01:39]} 4. d4 {[%emt 0:00:05]} exd4 {[%emt 0:02:01]} 5. Nxd4 {[%emt 0:00:05]} Bf6 {[%emt 0:05:55]} 6. Nxc6 {[%emt 0:01:38]} bxc6 {[%emt 0:01:29]} 7. O-O {[%emt 0:07:43]} d6 {[%emt 0:07:19]} 8. f4 {[%emt 0:04:24]} g6 {[%emt 0:02:49]} 9. Qf3 {[%emt 0:06:13]} Bd4+ {[%emt 0:02:28]} 10. Kh1 {[%emt 0:00:05]} h5 {[%emt 0:04:34]} 11. Qb3 {[%emt 0:02:40]} Nh6 {[%emt 0:12:55]} 12. f5 {[%emt 0:04:40]} g5 {[%emt 0:00:42]} 13. Qa4 {[%emt 0:02:26]} Be5 {[%emt 0:00:02]} 14. Qxc6+ {[%emt 0:00:36]} Bd7 {[%emt 0:00:01]} 15. Qd5 {[%emt 0:00:26]} c6 {[%emt 0:01:03]} 16. Qd3 {[%emt 0:04:13]} Ng4 {[%emt 0:04:31]} 17. h3 {[%emt 0:07:20]} Qb6 {[%emt 0:07:50]} 18. Qe2 {[%emt 0:01:42]} Bg3 {[%emt 0:02:09]} 19. Bxg5 {[%emt 0:01:34]} Nf2+ {[%emt 0:00:55]} 20. Rxf2 {[%emt 0:00:06]} Qxf2 {[%emt 0:00:21]} 21. Qxf2 {[%emt 0:02:21]} Bxf2 {[%emt 0:03:04]} 22. Nd2 {[%emt 0:00:00]} Bd4 {[%emt 0:00:29]} 23. c3 {[%emt 0:00:00]} Be5 {[%emt 0:00:02]} 24. Nf3 {[%emt 0:00:00]} Bg3 {[%emt 0:01:44]} 25. Bf6 {[%emt 0:00:10]} O-O {[%emt 0:00:38]} 26. Rd1 {[%emt 0:02:52]} Rae8 {[%emt 0:02:30]} 27. e5 {[%emt 0:07:46]} d5 {[%emt 0:01:35]} 28. Bd3 {[%emt 0:00:10]} c5 {[%emt 0:01:25]} 29. Rd2 {[%emt 0:01:50]} Bc6 {[%emt 0:01:01]} 30. Re2 {[%emt 0:00:37]} Rc8 {[%emt 0:02:12]} 31. Be7 {[%emt 0:00:30]} Rfe8 {[%emt 0:00:43]} 32. Bxc5 {[%emt 0:00:57]} Bd7 {[%emt 0:02:22]} 33. Bf2 {[%emt 0:04:17]} Bxf2 {[%emt 0:00:34]} 34. Rxf2 {[%emt 0:00:04]} Rb8 {[%emt 0:01:29]} 35. Re2 {[%emt 0:00:12]} Kg7 {[%emt 0:00:15]} 36. Nd4 {[%emt 0:02:02]} Rb6 {[%emt 0:00:09]} 37. g3 {[%emt 0:02:51]} Kh6 {[%emt 0:00:42]} 38. Kg2 {[%emt 0:00:08]} Kg5 {[%emt 0:00:31]} 39. Nf3+ {[%emt 0:00:45]} Kh6 {[%emt 0:00:06]} 40. g4 {[%emt 0:00:07]} hxg4 {[%emt 0:00:07]} 41. hxg4 {[%emt 0:00:05]} Bb5 {[%emt 0:00:41]} 42. g5+ {[%emt 0:00:38]} Kh5 {[%emt 0:00:13]} 43. Kg3 {[%emt 0:00:12]} 1-0

[Event "XXI Torredembarra Open 2019"]
[Site "Torredembarra"]
[Date "2019.07.14"]
[Round "9.7"]
[White "Fernandez Alonso, Miguel Angel"]
[Black "Arrieta Restrepo, Steven"]
[Result "1/2-1/2"]
[ECO "D36"]
[WhiteElo "2060"]
[BlackElo "1938"]
[Annotator "NA"]
[PlyCount "104"]
[EventDate "2019.07.06"]
[EventType "swiss"]
[EventCountry "ESP"]
[SourceTitle "playchess.com"]
[Source "ChessBase"]
[SourceQuality "1"]
[TimeControl "5400+30"]

1. d4 {[%emt 0:01:25]} Nf6 {[%emt 0:00:00]} 2. c4 {[%emt 0:00:11]} e6 {[%emt 0:00:00]} 3. Nf3 {[%emt 0:00:17]} d5 {[%emt 0:00:42]} 4. cxd5 {[%emt 0:00:21]} exd5 {[%emt 0:00:29]} 5. Nc3 {[%emt 0:00:06]} c6 {[%emt 0:00:08]} 6. Bg5 {[%emt 0:00:07]} Be7 {[%emt 0:01:29]} 7. Qc2 {[%emt 0:00:10]} O-O {[%emt 0:01:18]} 8. e3 {[%emt 0:00:05]} Be6 {[%emt 0:05:56]} 9. Bd3 {[%emt 0:00:10]} h6 {[%emt 0:00:08]} 10. Bh4 {[%emt 0:00:07]} Nbd7 {[%emt 0:02:10]} 11. O-O {[%emt 0:00:10]} Rc8 {[%emt 0:01:20]} 12. Rac1 {[%emt 0:03:13]} c5 {[%emt 0:25:13]} 13. Bf5 {[%emt 0:04:02]} cxd4 {[%emt 0:14:24]} 14. Nxd4 {[%emt 0:00:26]} Bxf5 {[%emt 0:00:51]} 15. Nxf5 {[%emt 0:00:23]} Bb4 {[%emt 0:05:24]} 16. Qb3 {[%emt 0:01:13]} Bxc3 {[%emt 0:00:24]} 17. Rxc3 {[%emt 0:01:18]} Rxc3 {[%emt 0:00:08]} 18. Qxc3 {[%emt 0:00:28]} Qb6 {[%emt 0:01:11]} 19. Rc1 {[%emt 0:00:45]} Re8 {[%emt 0:01:56]} 20. b3 {[%emt 0:01:39]} Qe6 {[%emt 0:04:20]} 21. Nd4 {[%emt 0:00:46]} Qa6 {[%emt 0:06:37]} 22. a4 {[%emt 0:01:59]} Nf8 {[%emt 0:11:11]} 23. Nf5 {[%emt 0:04:12]} Re6 {[%emt 0:09:39]} 24. Bxf6 {[%emt 0:01:23]} Rxf6 {[%emt 0:01:18]} 25. Ne7+ {[%emt 0:00:22]} Kh7 {[%emt 0:00:04]} 26. Qc8 {[%emt 0:00:22]} Qe2 {[%emt 0:04:06]} 27. Qc2+ {[%emt 0:05:11]} Qxc2 {[%emt 0:01:04]} 28. Rxc2 {[%emt 0:00:09]} d4 {[%emt 0:00:32]} 29. Nd5 {[%emt 0:03:14]} Rd6 {[%emt 0:00:07]} 30. e4 {[%emt 0:03:20]} f5 {[%emt 0:01:21]} 31. Rd2 {[%emt 0:02:14]} fxe4 {[%emt 0:00:16]} 32. Rxd4 {[%emt 0:00:15]} h5 {[%emt 0:00:55]} 33. Kf1 {[%emt 0:00:27]} Kh6 {[%emt 0:00:12]} 34. Ke2 {[%emt 0:00:19]} Ne6 {[%emt 0:00:49]} 35. Rxe4 {[%emt 0:06:49]} Nc5 {[%emt 0:00:02]} 36. Re5 {[%emt 0:01:56]} Nxb3 {[%emt 0:00:05]} 37. Ne7 {[%emt 0:00:47]} g6 {[%emt 0:01:11]} 38. Ke3 {[%emt 0:00:48]} b6 {[%emt 0:01:14]} 39. f4 {[%emt 0:02:32]} Rd1 {[%emt 0:00:35]} 40. Nc8 {[%emt 0:00:55]} Ra1 {[%emt 0:00:27]} 41. Nxa7 {[%emt 0:01:54]} Nc5 {[%emt 0:00:35]} 42. Nc8 {[%emt 0:05:37]} Ra3+ {[%emt 0:00:06]} 43. Ke2 {[%emt 0:00:17]} Ra2+ {[%emt 0:00:29]} 44. Kf3 {[%emt 0:03:28]} Ra3+ {[%emt 0:00:21]} 45. Re3 {[%emt 0:00:21]} Rxe3+ {[%emt 0:01:03]} 46. Kxe3 {[%emt 0:00:07]} Nxa4 {[%emt 0:00:05]} 47. Kd4 {[%emt 0:00:17]} Kg7 {[%emt 0:00:20]} 48. Kc4 {[%emt 0:00:26]} Kf6 {[%emt 0:00:33]} 49. g3 {[%emt 0:00:21]} g5 {[%emt 0:00:40]} 50. fxg5+ {[%emt 0:03:43]} Kxg5 {[%emt 0:00:06]} 51. h3 {[%emt 0:00:43]} Nc5 {[%emt 0:08:35]} 52. Kd5 {[%emt 0:00:40]} Nd3 1/2-1/2

[Event "XXI Torredembarra Open 2019"]
[Site "Torredembarra"]
[Date "2019.07.14"]
[Round "9.8"]
[White "Borrellas Comellas, Josep"]
[Black "Torrens Busquet, Marti"]
[Result "1/2-1/2"]
[ECO "B08"]
[WhiteElo "1935"]
[BlackElo "2042"]
[Annotator "NA"]
[PlyCount "51"]
[EventDate "2019.07.06"]
[EventType "swiss"]
[EventCountry "ESP"]
[SourceTitle "playchess.com"]
[Source "ChessBase"]
[SourceQuality "1"]
[TimeControl "5400+30"]

1. e4 {[%emt 0:00:00]} d6 {[%emt 0:01:42]} 2. d4 {[%emt 0:00:00]} Nf6 {[%emt 0:00:08]} 3. Nc3 {[%emt 0:00:18]} g6 {[%emt 0:00:19]} 4. Nf3 {[%emt 0:00:49]} Bg7 {[%emt 0:00:08]} 5. Be3 {[%emt 0:04:20]} O-O {[%emt 0:00:53]} 6. Be2 {[%emt 0:00:38]} c6 {[%emt 0:01:06]} 7. O-O {[%emt 0:00:43]} Nbd7 {[%emt 0:01:16]} 8. Qd2 {[%emt 0:01:48]} e5 {[%emt 0:01:38]} 9. dxe5 {[%emt 0:01:22]} dxe5 {[%emt 0:01:44]} 10. Rfd1 {[%emt 0:02:07]} Qc7 {[%emt 0:01:15]} 11. Bh6 {[%emt 0:05:14]} Nc5 {[%emt 0:02:47]} 12. Bxg7 {[%emt 0:05:40]} Kxg7 {[%emt 0:01:02]} 13. Qe3 {[%emt 0:04:13]} Ne6 {[%emt 0:01:01]} 14. g3 {[%emt 0:05:39]} Ng4 {[%emt 0:01:06]} 15. Qc1 {[%emt 0:04:03]} Qb6 {[%emt 0:02:59]} 16. Rf1 {[%emt 0:00:04]} Nd4 {[%emt 0:01:39]} 17. Nxd4 {[%emt 0:04:14]} exd4 {[%emt 0:00:22]} 18. Na4 {[%emt 0:02:20]} Qa5 {[%emt 0:00:13]} 19. b3 {[%emt 0:02:07]} Qh5 {[%emt 0:05:51]} 20. h4 {[%emt 0:01:18]} h6 {[%emt 0:08:04]} 21. Kg2 {[%emt 0:02:53]} g5 {[%emt 0:01:34]} 22. Rh1 {[%emt 0:01:25]} gxh4 {[%emt 0:04:37]} 23. Rxh4 {[%emt 0:00:39]} Ne3+ {[%emt 0:01:23]} 24. Qxe3 {[%emt 0:03:45]} Qxh4 25. Qxd4+ {[%emt 0:00:01]} Qf6 26. Qd2 {[%emt 0:00:03]} 1/2-1/2

[Event "XXI Torredembarra Open 2019"]
[Site "Torredembarra"]
[Date "2019.07.14"]
[Round "9.9"]
[White "Lacasa Diaz, Jose Antonio"]
[Black "Estruch Andreu, Guim"]
[Result "1-0"]
[ECO "B07"]
[WhiteElo "2391"]
[BlackElo "1865"]
[Annotator "ChessBase"]
[PlyCount "59"]
[EventDate "2019.07.06"]
[EventType "swiss"]
[EventCountry "ESP"]
[SourceTitle "playchess.com"]
[Source "ChessBase"]
[SourceQuality "1"]
[TimeControl "5400+30"]

1. d4 {[%emt 0:00:00]} Nf6 {[%emt 0:00:00]} 2. Bf4 {[%emt 0:00:00]} g6 {[%emt 0:00:05]} 3. Nc3 {[%emt 0:00:00]} Bg7 {[%emt 0:01:09]} 4. e4 {[%emt 0:00:00]} d6 {[%emt 0:01:29]} 5. Qd2 {[%emt 0:00:07]} O-O {[%emt 0:06:03]} 6. Bh6 {[%emt 0:00:29]} c5 {[%emt 0:01:24]} 7. Bxg7 {[%emt 0:00:54]} Kxg7 {[%emt 0:00:18]} 8. Nge2 {[%emt 0:00:54]} Na6 {[%emt 0:03:15]} 9. O-O-O {[%emt 0:01:13]} cxd4 {[%emt 0:03:52]} 10. Nxd4 {[%emt 0:00:52]} Nc5 {[%emt 0:02:09]} 11. f3 {[%emt 0:00:10]} Qa5 {[%emt 0:03:38]} 12. Kb1 {[%emt 0:00:47]} Be6 {[%emt 0:03:41]} 13. g4 {[%emt 0:04:53]} b5 {[%emt 0:11:52]} 14. Bxb5 {[%emt 0:04:10]} a6 {[%emt 0:04:03]} 15. Nxe6+ {[%emt 0:01:18]} fxe6 {[%emt 0:02:23]} 16. Bc4 {[%emt 0:00:55]} Rab8 {[%emt 0:01:36]} 17. Bb3 {[%emt 0:00:37]} Qb4 {[%emt 0:07:52]} 18. Qe3 {[%emt 0:12:50]} a5 {[%emt 0:06:45]} 19. e5 {[%emt 0:05:44]} Nd5 {[%emt 0:07:16]} 20. Nxd5 {[%emt 0:01:54]} exd5 {[%emt 0:00:21]} 21. exd6 {[%emt 0:01:10]} e6 {[%emt 0:06:53]} 22. Qe5+ {[%emt 0:02:00]} Kg8 {[%emt 0:01:31]} 23. a3 {[%emt 0:08:02]} Qb6 {[%emt 0:04:03]} 24. Rxd5 {[%emt 0:01:50]} exd5 {[%emt 0:08:12]} 25. Qxd5+ {[%emt 0:00:49]} Kg7 {[%emt 0:01:00]} 26. Qe5+ {[%emt 0:00:10]} Kh6 {[%emt 0:01:17]} 27. g5+ {[%emt 0:00:13]} Kh5 {[%emt 0:00:49]} 28. Qg3 {[%emt 0:00:20]} Rxf3 {[%emt 0:01:01]} 29. Qxf3+ {[%emt 0:00:31]} Kxg5 {[%emt 0:00:12]} 30. Qe3+ {[%emt 0:02:24]} 1-0